lending/lending_fUSD_20240131
["ID","MTS","AMOUNT","RATE_DAILY","PERIOD"]
[313086437,1706736642517,-566.54,0.00036438,2]
[313086438,1706736642527,-416.77,0.00036438,2]
[313086439,1706736642537,-150.68,0.00036438,2]
[313086440,1706736642546,-150.0,0.00036438,2]
[313086441,1706736642555,-520.5,0.00036438,2]
[313086442,1706736642564,-300.0,0.00036438,2]
[313086443,1706736642574,-150.0,0.00036438,2]
[313086444,1706736642584,-150.0,0.00036438,2]
[313086445,1706736642593,-150.0,0.00036438,2]
[313086446,1706736642603,-150.0,0.00036438,2]
[313086447,1706736642613,-150.0,0.00036438,2]
[313086448,1706736642624,-150.0,0.00036438,2]
[313086449,1706736642633,-150.0,0.00036438,2]
[313086450,1706736642643,-204.0,0.0003644,2]
[313086451,1706736642652,-210.0,0.0003644,2]
[313086452,1706736642661,-10000.0,0.00036453,2]
[313086453,1706736642671,-151.0201,0.00036498,13]
[313086454,1706736642681,-224.63308121,0.000365,2]
[313086455,1706736642691,-5000.0,0.000365,7]
[313086456,1706736642701,-500.0,0.00036504,2]
[313086457,1706736642710,-204.0,0.0003654,23]
[313086458,1706736642720,-3913.30748907,0.00036552,8]
[313086459,1706736642729,-420.51663594,0.00036557,4]
[313086460,1706736642738,-200.0,0.00036566,7]
[313086461,1706736642748,-282.15685369,0.00036575,4]
[313086462,1706736642757,-155.85642707,0.00036575,4]
[313086463,1706736642767,-3906.33131402,0.00036676,2]
[313086464,1706736642777,-3971.27,0.000367,3]
[313086466,1706736642787,-10000.0,0.00036708,3]
[313086467,1706736642797,-160.19,0.00036712,2]
[313086468,1706736642807,-151.0,0.00036745,4]
[313086469,1706736642816,-228.75937488,0.00036797,2]
[313086470,1706736642826,-151.0201,0.00036798,13]
[313086471,1706736642836,-5783.07130422,0.00036799,15]
[313086472,1706736642846,-200.0,0.000368,11]
[313086474,1706736642855,-200.0,0.000368,2]
[313086476,1706736642865,-481.285443,0.000368,2]
[313086477,1706736642874,-1044.1805554,0.000368,2]
[313086478,1706736642883,-1000.0,0.000368,18]
[313086479,1706736642893,-500.0,0.000368,2]
[313086480,1706736642902,-150.0,0.000368,11]
[313086481,1706736642911,-150.0,0.000368,11]
[313086482,1706736642921,-1818.77,0.00036814,5]
[313086483,1706736642930,-357.11876471,0.00036823,30]
[313086484,1706736642939,-51403.3855373,0.00036855,2]
[313086485,1706736642948,-10746.2481897,0.00036855,2]
[313086486,1706736642957,-3632.9350643,0.00036855,2]
[313086487,1706736642966,-73713.9994484,0.00036855,2]
[313086488,1706736642975,-200.0,0.00036869,7]
[313086489,1706736642984,-200.0,0.0003687,7]
[313086490,1706736642993,-200.0,0.0003687,7]
[313086491,1706736643002,-200.0,0.0003687,7]
[313086492,1706736643011,-200.0,0.0003687,7]
[313086493,1706736643022,-2999.37727767,0.00036877,2]
[313086494,1706736643031,-150.0,0.00036879,2]
[313086495,1706736643041,-150.0,0.00036879,2]
[313086496,1706736643051,-442294.31103481,0.0003688,2]
[313086497,1706736643061,-158.04578453,0.0003688,4]
[313086498,1706736643070,-1480.16222093,0.0003688,5]
[313086499,1706736643079,-18746.78039763,0.000369,7]
[313086500,1706736643089,-1301.752535,0.000369,18]
[313086501,1706736643098,-10639.806501,0.00036916,2]
[313086502,1706736643107,-3763.78,0.00036934,2]
[313086503,1706736643117,-50495.832436,0.00036941,2]
[313086504,1706736643126,-3601.7308575,0.00036941,2]
[313086505,1706736643135,-200.0,0.00036988,7]
[313086506,1706736643144,-209.84490538,0.00036988,7]
[313086507,1706736643153,-1788.85,0.00036991,5]
[313086508,1706736643162,-155.0,0.00036996,4]
[313086509,1706736643171,-155.95087656,0.00036996,4]
[313086510,1706736643181,-487.24115174,0.00036996,4]
[313086511,1706736643191,-155.12126467,0.00036996,4]
[313086512,1706736643200,-155.31590914,0.00036996,4]
[313086513,1706736643209,-155.0,0.00036997,4]
[313086514,1706736643221,-292.8513202,0.00036997,4]
[313086515,1706736643230,-155.0,0.00036998,4]
[313086516,1706736643240,-167.7325939,0.00036999,5]
[313086517,1706736643249,-162751.81606046,0.00036999,5]
[313086518,1706736643258,-1000.0,0.00037,7]
[313086519,1706736643270,-1109.0,0.00037,7]
[313086520,1706736643279,-399.0,0.00037,7]
[313086521,1706736643287,-600.0,0.00037,38]
[313086522,1706736643298,-650.0,0.00037,3]
[313086523,1706736643308,-151.0201,0.00037198,14]
[313086524,1706736643317,-226.52,0.0003726,2]
[313086525,1706736643326,-150.0,0.0003726,2]
[313086526,1706736643340,-300.0,0.0003726,2]
[313086527,1706736643357,-150.0,0.0003726,2]
[313086528,1706736643373,-150.0,0.0003726,2]
[313086529,1706736643385,-150.0,0.0003726,2]
[313086530,1706736643399,-416.77,0.0003726,2]
[313086531,1706736643416,-416.77,0.0003726,2]
[313086532,1706736643432,-416.77,0.0003726,2]
[313086533,1706736643446,-416.77,0.0003726,2]
[313086534,1706736643460,-416.77,0.0003726,2]
[313086535,1706736643473,-868.25,0.0003726,2]
[313086536,1706736643488,-204.0,0.0003729,2]
[313086537,1706736643501,-210.0,0.0003729,2]
[313086538,1706736643517,-300.0,0.000373,11]
[313086539,1706736643528,-156.4652027,0.00037372,2]
[313086540,1706736643544,-21227.60583705,0.00037406,10]
[313086541,1706736643559,-10000.0,0.00037432,3]
[313086542,1706736643573,-304.761,0.00037493,7]
[313086543,1706736643586,-150.0,0.00037493,7]
[313086544,1706736643601,-151.0,0.00037495,2]
[313086545,1706736643617,-151.0201,0.00037498,14]
[313086546,1706736643634,-1288.33950737,0.00037499,2]
[313086547,1706736643649,-202.58121259,0.000375,2]
[313086548,1706736643661,-150.1,0.00037564,2]
[313086549,1706736643672,-117105.58233564,0.0003769,2]
[313086550,1706736643685,-154.03,0.000377,3]
[313086552,1706736643699,-154.03,0.000377,3]
[313086554,1706736643714,-154.03,0.000377,3]
[313086556,1706736643726,-2919.82,0.000377,3]
[313086557,1706736643737,-2919.82,0.000377,3]
[313086558,1706736643750,-2919.82,0.000377,3]
[313086559,1706736643766,-2919.82,0.000377,3]
[313086561,1706736643781,-2919.82,0.000377,3]
[313086564,1706736643794,-2919.82,0.000377,3]
[313086566,1706736643808,-2919.82,0.000377,3]
[313086568,1706736643821,-2919.82,0.000377,3]
[313086572,1706736643834,-2919.82,0.000377,3]
[313086576,1706736643848,-2919.82,0.000377,3]
[313086580,1706736643860,-2919.82,0.000377,3]
[313086583,1706736643875,-2919.82,0.000377,3]
[313086585,1706736643887,-2919.82,0.000377,3]
[313086588,1706736643900,-2919.82,0.000377,3]
[313086589,1706736643912,-2919.82,0.000377,3]
[313086590,1706736643925,-2919.82,0.000377,3]
[313086591,1706736643937,-2919.82,0.000377,3]
[313086592,1706736643950,-2919.82,0.000377,3]
[313086593,1706736643963,-2919.82,0.000377,3]
[313086594,1706736643975,-2919.82,0.000377,3]
[313086595,1706736643989,-223.27172228,0.00037721,2]
[313086596,1706736644002,-151.0201,0.00037798,14]
[313086597,1706736644016,-483.72694412,0.000378,31]
[313086598,1706736644029,-1044.1805554,0.000378,2]
[313086599,1706736644042,-746.415533,0.000378,2]
[313086600,1706736644055,-421.66,0.00037801,2]
[313086601,1706736644068,-152.0,0.00037818,4]
[313086602,1706736644080,-900.0,0.0003787,2]
[313086603,1706736644092,-53379.1030488,0.00037874,2]
[313086604,1706736644104,-5998.75455534,0.00037897,2]
[313086605,1706736644116,-150.0,0.00037899,2]
[313086606,1706736644129,-150.0,0.00037899,2]
[313086607,1706736644141,-4446.70785095,0.000379,7]
[313086608,1706736644154,-1978.828323,0.000379,8]
[313086609,1706736644167,-27462.94883749,0.000379,2]
[313086610,1706736644179,-670261.225427,0.000379,3]
[313086611,1706736644192,-278.960833,0.000379,2]
[313086612,1706736644204,-206.64381573,0.000379,2]
[313086614,1706736644217,-2958.32358132,0.000379,2]
[313086616,1706736644228,-6827.72173547,0.000379,2]
[313086618,1706736644243,-304.55023406,0.000379,2]
[313086619,1706736644255,-33044.2066492,0.00037974,2]
[313086620,1706736644270,-222.639893,0.00037987,2]
[313086621,1706736644282,-2999.37727767,0.00037997,2]
[313086623,1706736644295,-150.0,0.00037999,2]
[313086625,1706736644307,-150.0,0.00037999,2]
[313086628,1706736644319,-100000.0,0.00038,8]
[313086630,1706736644331,-10000.0,0.00038,3]
[313086632,1706736644343,-9038.01684225,0.00038,3]
[313086634,1706736644354,-3203.0,0.00038,3]
[313086637,1706736644366,-200000.0,0.00038,7]
[313086639,1706736644378,-181.033,0.00038,120]
[313086641,1706736644389,-2500.0,0.00038,2]
[313086644,1706736644402,-19350.0,0.00038,2]
[313086646,1706736644413,-268.65695987,0.00038,3]
[313086648,1706736644425,-600.0,0.00038,39]
[313086651,1706736644436,-49769.91632853,0.00038,4]
[313086653,1706736644448,-131044.54929653,0.00038,2]
[313086655,1706736644459,-223152.81664551,0.00038,2]
[313086658,1706736644472,-1018.15021542,0.00038,2]
[313086660,1706736644483,-1000.0,0.00038017,10]
[313086662,1706736644495,-1000.0,0.00038017,10]
[313086664,1706736644507,-1000.0,0.00038017,10]
[313086667,1706736644521,-5310.3877477,0.000381,14]
[313086669,1706736644534,-204.0,0.0003814,2]
[313086671,1706736644546,-210.0,0.0003814,2]
[313086674,1706736644558,-151.0201,0.00038198,15]
[313086676,1706736644571,-3763.78,0.00038252,2]
[313086678,1706736644583,-3906.33131402,0.00038254,2]
[313086681,1706736644595,-700.0,0.0003827,2]
[313086683,1706736644608,-500.0,0.00038356,2]
[313086684,1706736644620,-500.0,0.00038356,5]
[313086685,1706736644631,-172.82608514,0.00038356,5]
[313086687,1706736644643,-524.90503888,0.00038356,5]
[313086689,1706736644655,-509.2674696,0.00038356,5]
[313086692,1706736644667,-516.77118594,0.00038356,5]
[313086694,1706736644680,-500.0,0.00038356,5]
[313086696,1706736644692,-525.06775347,0.00038356,5]
[313086699,1706736644705,-500.0,0.00038356,5]
[313086701,1706736644716,-510.55016326,0.00038356,5]
[313086703,1706736644726,-500.0,0.00038356,5]
[313086705,1706736644735,-536.33214745,0.00038356,5]
[313086707,1706736644744,-523.32838124,0.00038356,5]
[313086708,1706736644753,-511.1496312,0.00038356,5]
[313086710,1706736644765,-509.00600341,0.00038356,5]
[313086713,1706736644774,-632.25067183,0.00038356,5]
[313086714,1706736644783,-316.48907833,0.00038356,5]
[313086717,1706736644793,-500.0,0.00038356,5]
[313086721,1706736644802,-250.73666734,0.00038356,5]
[313086722,1706736644812,-512.22190933,0.00038356,5]
[313086724,1706736644821,-562.82543799,0.00038356,5]
[313086726,1706736644830,-511.3116027,0.00038356,5]
[313086728,1706736644839,-307.30373834,0.00038356,5]
[313086730,1706736644848,-514.26396744,0.00038356,5]
[313086732,1706736644857,-503.57718117,0.00038356,5]
[313086733,1706736644868,-175.90805629,0.00038356,5]
[313086735,1706736644877,-525.36570257,0.00038356,5]
[313086737,1706736644886,-520.57916272,0.00038356,15]
[313086739,1706736644895,-530.02254962,0.00038356,5]
[313086764,1706736645173,-638.00131498,0.00038356,5]
[313086768,1706736645199,-514.77418655,0.00038356,5]
[313086770,1706736645216,-524.39679254,0.00038356,5]
[313086772,1706736645225,-691.95115683,0.00038356,2]
[313086773,1706736645235,-525.16481212,0.00038356,5]
[313086775,1706736645246,-538.06127374,0.00038356,5]
[313086777,1706736645255,-519.61527626,0.00038356,5]
[313086779,1706736645264,-505.10507968,0.00038356,5]
[313086781,1706736645273,-513.42718519,0.00038356,5]
[313086782,1706736645282,-507.49609647,0.00038356,5]
[313086784,1706736645292,-531.29891164,0.00038356,5]
[313086786,1706736645301,-513.27069722,0.00038356,5]
[313086788,1706736645310,-529.88518795,0.00038356,5]
[313086789,1706736645319,-530.42538338,0.00038356,5]
[313086791,1706736645328,-504.66950699,0.00038356,5]
[313086793,1706736645337,-511.71718218,0.00038356,5]
[313086795,1706736645347,-524.02853884,0.00038356,5]
[313086797,1706736645356,-194.00511421,0.00038356,9]
[313086798,1706736645365,-500.0,0.00038356,5]
[313086800,1706736645374,-582.99557336,0.00038356,5]
[313086802,1706736645384,-555.87718765,0.00038356,5]
[313086804,1706736645393,-561.97715651,0.00038356,5]
[313086806,1706736645403,-603.73135131,0.00038356,5]
[313086808,1706736645413,-410.81504426,0.00038356,5]
[313086810,1706736645422,-551.0512927,0.00038356,5]
[313086812,1706736645431,-500.0,0.00038356,5]
[313086813,1706736645439,-1460.59,0.00038356,5]
[313086815,1706736645449,-500.0,0.00038356,5]
[313086817,1706736645459,-500.0,0.00038356,5]
[313086819,1706736645468,-196.43753151,0.00038356,5]
[313086821,1706736645478,-541.68258349,0.00038356,5]
[313086823,1706736645487,-500.0,0.00038356,5]
[313086825,1706736645496,-449.28271931,0.00038356,5]
[313086827,1706736645505,-604.36327718,0.00038356,5]
[313086828,1706736645516,-500.0,0.00038356,5]
[313086830,1706736645525,-510.63364645,0.00038356,5]
[313086832,1706736645534,-574.15187436,0.00038356,5]
[313086834,1706736645544,-553.49,0.00038356,5]
[313086836,1706736645554,-518.65096468,0.00038356,5]
[313086838,1706736645564,-238.00270007,0.00038356,5]
[313086840,1706736645575,-500.0,0.00038356,5]
[313086841,1706736645584,-539.64145329,0.00038356,5]
[313086843,1706736645593,-525.12553441,0.00038356,5]
[313086845,1706736645602,-519.7475131,0.00038356,5]
[313086847,1706736645611,-500.0,0.00038356,2]
[313086849,1706736645620,-500.0,0.00038356,5]
[313086851,1706736645630,-500.0,0.00038356,5]
[313086853,1706736645639,-500.0,0.00038356,5]
[313086855,1706736645648,-545.33462218,0.00038356,5]
[313086856,1706736645657,-508.5782233,0.00038356,5]
[313086858,1706736645666,-500.0,0.00038356,5]
[313086860,1706736645675,-500.0,0.00038356,5]
[313086862,1706736645684,-553.07482861,0.00038356,5]
[313086864,1706736645693,-625.93,0.00038356,5]
[313086866,1706736645703,-500.0,0.00038356,5]
[313086868,1706736645712,-500.0,0.00038356,5]
[313086869,1706736645720,-581.7762474,0.00038356,5]
[313086871,1706736645730,-585.90279647,0.00038356,5]
[313086873,1706736645739,-534.96890779,0.00038356,5]
[313086875,1706736645749,-569.52356662,0.00038356,5]
[313086877,1706736645759,-513.40162356,0.00038356,5]
[313086879,1706736645771,-500.0,0.00038356,5]
[313086881,1706736645781,-558.34185529,0.00038356,5]
[313086883,1706736645790,-567.86087572,0.00038356,5]
[313086885,1706736645799,-500.0,0.00038356,5]
[313086887,1706736645809,-500.0,0.00038356,5]
[313086889,1706736645818,-500.0,0.00038356,5]
[313086891,1706736645827,-539.62176007,0.00038356,5]
[313086893,1706736645836,-500.0,0.00038356,5]
[313086894,1706736645846,-500.0,0.00038356,5]
[313086896,1706736645855,-500.0,0.00038356,5]
[313086898,1706736645864,-527.98859266,0.00038356,5]
[313086900,1706736645874,-500.0,0.00038356,5]
[313086902,1706736645884,-500.0,0.00038356,5]
[313086906,1706736645893,-500.0,0.00038356,5]
[313086909,1706736645905,-617.12,0.00038356,5]
[313086912,1706736645915,-500.0,0.00038356,5]
[313086915,1706736645925,-523.32526393,0.00038356,5]
[313086917,1706736645934,-524.68550398,0.00038356,5]
[313086919,1706736645943,-500.0,0.00038356,5]
[313086922,1706736645954,-579.28456783,0.00038356,5]
[313086924,1706736645963,-500.0,0.00038356,5]
[313086926,1706736645972,-553.86953582,0.00038356,5]
[313086927,1706736645982,-574.16163239,0.00038356,5]
[313086928,1706736645991,-500.0,0.00038356,5]
[313086929,1706736646000,-500.0,0.00038356,5]
[313086930,1706736646010,-500.0,0.00038356,5]
[313086931,1706736646022,-552.97219801,0.00038356,5]
[313086933,1706736646031,-500.0,0.00038356,5]
[313086935,1706736646041,-536.97105983,0.00038356,5]
[313086936,1706736646050,-550.05646222,0.00038356,5]
[313086938,1706736646060,-500.0,0.00038356,5]
[313086939,1706736646069,-500.0,0.00038356,5]
[313086941,1706736646078,-500.0,0.00038356,5]
[313086944,1706736646087,-509.45083772,0.00038356,5]
[313086945,1706736646096,-535.07387261,0.00038356,5]
[313086948,1706736646106,-500.0,0.00038356,5]
[313086951,1706736646115,-555.38722835,0.00038356,5]
[313086953,1706736646125,-500.0,0.00038356,5]
[313086956,1706736646134,-167.56619595,0.00038356,5]
[313086958,1706736646144,-500.0,0.00038356,5]
[313086960,1706736646156,-500.0,0.00038356,5]
[313086962,1706736646166,-500.0,0.00038356,5]
[313086964,1706736646176,-500.0,0.00038356,2]
[313086966,1706736646186,-531.97360239,0.00038356,5]
[313086968,1706736646197,-515.82212104,0.00038356,5]
[313086970,1706736646207,-550.28374044,0.00038356,5]
[313086972,1706736646217,-312.13054752,0.00038356,5]
[313086974,1706736646226,-541.52757592,0.00038356,5]
[313086976,1706736646235,-500.0,0.00038356,5]
[313086978,1706736646245,-500.0,0.00038356,5]
[313086980,1706736646254,-602.54387735,0.00038356,5]
[313086982,1706736646267,-500.0,0.00038356,5]
[313086984,1706736646282,-500.0,0.00038356,5]
[313086986,1706736646292,-500.0,0.00038356,5]
[313086988,1706736646302,-231.00758221,0.00038356,5]
[313086990,1706736646311,-500.0,0.00038356,5]
[313086992,1706736646321,-552.44134867,0.00038356,5]
[313086994,1706736646330,-500.0,0.00038356,5]
[313086996,1706736646340,-614.81959044,0.00038356,5]
[313086998,1706736646349,-500.0,0.00038356,5]
[313087000,1706736646359,-500.0,0.00038356,5]
[313087002,1706736646368,-155.52603274,0.00038356,5]
[313087004,1706736646382,-500.0,0.00038356,5]
[313087006,1706736646391,-500.0,0.00038356,5]
[313087008,1706736646400,-500.0,0.00038356,5]
[313087010,1706736646409,-500.0,0.00038356,5]
[313087012,1706736646418,-500.0,0.00038356,5]
[313087014,1706736646427,-500.0,0.00038356,5]
[313087016,1706736646436,-500.0,0.00038356,5]
[313087018,1706736646445,-500.0,0.00038356,5]
[313087020,1706736646453,-500.0,0.00038356,5]
[313087022,1706736646462,-500.0,0.00038356,5]
[313087024,1706736646471,-500.0,0.00038356,5]
[313087026,1706736646480,-500.0,0.00038356,5]
[313087028,1706736646489,-435.4942738,0.00038356,5]
[313087030,1706736646497,-500.0,0.00038356,5]
[313087032,1706736646507,-500.0,0.00038356,5]
[313087034,1706736646518,-609.58286243,0.00038356,5]
[313087036,1706736646527,-500.0,0.00038356,5]
[313087038,1706736646536,-237.61168304,0.00038356,5]
[313087040,1706736646545,-500.0,0.00038356,5]
[313087042,1706736646553,-500.0,0.00038356,5]
[313087044,1706736646562,-558.84179322,0.00038356,5]
[313087046,1706736646571,-347.52605877,0.00038356,5]
[313087048,1706736646580,-500.0,0.00038356,2]
[313087050,1706736646590,-10000.0,0.00038356,3]
[313087052,1706736646599,-500.0,0.00038356,5]
[313087054,1706736646608,-1050.88636604,0.00038356,5]
[313087056,1706736646617,-500.0,0.00038356,5]
[313087058,1706736646625,-500.0,0.00038356,5]
[313087060,1706736646635,-500.0,0.00038356,5]
[313087062,1706736646644,-500.0,0.00038356,5]
[313087064,1706736646654,-500.0,0.00038356,5]
[313087066,1706736646664,-580.08617363,0.00038356,5]
[313087068,1706736646673,-500.0,0.00038356,5]
[313087070,1706736646682,-598.43579509,0.00038356,5]
[313087072,1706736646691,-521.68246135,0.00038356,5]
[313087074,1706736646702,-520.7131898,0.00038356,5]
[313087076,1706736646715,-500.0,0.00038356,5]
[313087078,1706736646723,-500.0,0.00038356,5]
[313087080,1706736646733,-897.14,0.00038356,2]
[313087082,1706736646742,-500.0,0.00038356,5]
[313087084,1706736646751,-500.0,0.00038356,5]
[313087085,1706736646760,-500.0,0.00038356,5]
[313087088,1706736646775,-500.0,0.00038356,20]
[313087089,1706736646785,-500.0,0.00038356,5]
[313087092,1706736646795,-500.0,0.00038356,5]
[313087094,1706736646806,-394.17463318,0.00038356,5]
[313087096,1706736646815,-481.5944589,0.00038356,5]
[313087098,1706736646825,-500.0,0.00038356,5]
[313087100,1706736646834,-500.0,0.00038356,5]
[313087101,1706736646844,-500.0,0.00038356,5]
[313087104,1706736646854,-500.0,0.00038356,5]
[313087106,1706736646865,-500.0,0.00038356,2]
[313087108,1706736646874,-500.0,0.00038356,5]
[313087110,1706736646884,-1000.0,0.00038356,2]
[313087112,1706736646893,-500.0,0.00038356,2]
[313087114,1706736646902,-197.90361237,0.00038356,5]
[313087116,1706736646912,-500.0,0.00038356,5]
[313087118,1706736646922,-500.0,0.00038356,5]
[313087120,1706736646932,-500.0,0.00038356,5]
[313087122,1706736646941,-500.0,0.00038356,5]
[313087124,1706736646951,-500.0,0.00038356,5]
[313087126,1706736646960,-258.16536005,0.00038356,5]
[313087128,1706736646970,-500.0,0.00038356,5]
[313087130,1706736646979,-500.0,0.00038356,5]
[313087132,1706736646989,-500.0,0.00038356,5]
[313087134,1706736646998,-1000.0,0.00038356,7]
[313087136,1706736647007,-500.0,0.00038356,5]
[313087138,1706736647019,-500.0,0.00038356,5]
[313087140,1706736647028,-500.0,0.00038356,5]
[313087142,1706736647037,-500.0,0.00038356,5]
[313087144,1706736647047,-166.65,0.00038356,5]
[313087146,1706736647056,-500.0,0.00038356,5]
[313087148,1706736647066,-500.0,0.00038356,5]
[313087150,1706736647075,-500.0,0.00038356,5]
[313087152,1706736647084,-500.0,0.00038356,5]
[313087154,1706736647093,-500.0,0.00038356,5]
[313087156,1706736647103,-500.0,0.00038356,5]
[313087158,1706736647112,-500.0,0.00038356,5]
[313087160,1706736647121,-151.36760573,0.00038356,5]
[313087162,1706736647131,-209.32856642,0.00038356,5]
[313087164,1706736647140,-500.0,0.00038356,5]
[313087166,1706736647151,-500.0,0.00038356,5]
[313087168,1706736647161,-500.0,0.00038356,5]
[313087170,1706736647170,-500.0,0.00038356,5]
[313087172,1706736647179,-153.73382314,0.00038356,5]
[313087174,1706736647188,-500.0,0.00038356,5]
[313087176,1706736647197,-500.0,0.00038356,5]
[313087178,1706736647206,-1613.63,0.00038356,7]
[313087180,1706736647218,-827.79,0.00038356,2]
[313087182,1706736647227,-1000.0,0.00038356,7]
[313087184,1706736647237,-516.09042419,0.00038356,2]
[313087186,1706736647245,-500.0,0.00038356,5]
[313087188,1706736647255,-357.52784035,0.00038356,5]
[313087190,1706736647266,-500.0,0.00038356,5]
[313087192,1706736647275,-500.0,0.00038356,5]
[313087194,1706736647285,-516.58765256,0.00038356,5]
[313087196,1706736647295,-500.0,0.00038356,5]
[313087197,1706736647305,-500.0,0.00038356,5]
[313087199,1706736647315,-189.89817517,0.00038356,5]
[313087201,1706736647325,-500.0,0.00038356,5]
[313087203,1706736647334,-501.85995366,0.00038356,5]
[313087205,1706736647343,-500.0,0.00038356,5]
[313087207,1706736647352,-518.83,0.00038356,5]
[313087209,1706736647360,-667.59,0.00038356,5]
[313087211,1706736647370,-500.0,0.00038356,2]
[313087213,1706736647379,-500.0,0.00038356,5]
[313087215,1706736647389,-500.0,0.00038356,5]
[313087217,1706736647399,-500.0,0.00038356,5]
[313087219,1706736647408,-500.00005973,0.00038356,2]
[313087221,1706736647417,-500.0,0.00038356,5]
[313087223,1706736647427,-851.16,0.00038356,5]
[313087225,1706736647436,-500.0,0.00038356,5]
[313087227,1706736647445,-500.0,0.00038356,5]
[313087229,1706736647454,-500.0,0.00038356,5]
[313087233,1706736647474,-560.91682286,0.00038356,5]
[313087235,1706736647484,-500.0,0.00038356,5]
[313087237,1706736647493,-500.0,0.00038356,2]
[313087239,1706736647503,-500.0,0.00038356,5]
[313087241,1706736647512,-500.0,0.00038356,5]
[313087243,1706736647524,-614.00667743,0.00038356,2]
[313087245,1706736647534,-500.0,0.00038356,5]
[313087247,1706736647543,-500.0,0.00038356,5]
[313087249,1706736647552,-500.0,0.00038356,5]
[313087251,1706736647562,-500.0,0.00038356,5]
[313087253,1706736647571,-500.0,0.00038356,5]
[313087255,1706736647581,-500.0,0.00038356,5]
[313087257,1706736647590,-492.66900958,0.00038356,5]
[313087259,1706736647600,-500.0,0.00038356,5]
[313087261,1706736647609,-500.0,0.00038356,5]
[313087263,1706736647619,-500.0,0.00038356,5]
[313087265,1706736647628,-500.0,0.00038356,5]
[313087267,1706736647638,-500.0,0.00038356,5]
[313087269,1706736647647,-500.0,0.00038356,5]
[313087271,1706736647656,-500.0,0.00038356,5]
[313087273,1706736647666,-500.0,0.00038356,5]
[313087276,1706736647676,-500.0,0.00038356,5]
[313087278,1706736647686,-500.0,0.00038356,5]
[313087280,1706736647695,-500.0,0.00038356,5]
[313087282,1706736647705,-500.0,0.00038356,5]
[313087284,1706736647714,-500.0,0.00038356,5]
[313087286,1706736647724,-500.0,0.00038356,5]
[313087288,1706736647733,-500.0,0.00038356,5]
[313087290,1706736647742,-500.0,0.00038356,5]
[313087292,1706736647752,-500.0,0.00038356,5]
[313087294,1706736647762,-500.0,0.00038356,5]
[313087296,1706736647774,-500.0,0.00038356,5]
[313087298,1706736647783,-500.0,0.00038356,5]
[313087300,1706736647793,-500.0,0.00038356,5]
[313087303,1706736647808,-500.0,0.00038356,5]
[313087305,1706736647817,-500.0,0.00038356,5]
[313087307,1706736647827,-500.0,0.00038356,5]
[313087309,1706736647837,-500.0,0.00038356,5]
[313087311,1706736647847,-500.0,0.00038356,5]
[313087313,1706736647856,-500.0,0.00038356,5]
[313087315,1706736647865,-500.0,0.00038356,5]
[313087317,1706736647875,-500.0,0.00038356,5]
[313087319,1706736647885,-368.2673154,0.00038356,5]
[313087321,1706736647894,-500.0,0.00038356,5]
[313087323,1706736647904,-500.0,0.00038356,5]
[313087325,1706736647914,-500.0,0.00038356,5]
[313087327,1706736647923,-500.0,0.00038356,5]
[313087329,1706736647933,-250.0,0.00038356,5]
[313087331,1706736647942,-500.0,0.00038356,5]
[313087333,1706736647952,-500.0,0.00038356,5]
[313087335,1706736647962,-500.0,0.00038356,5]